bitfinex/quotes_ETHUSD_20260106
["timestamp","ask_amount","ask_price","bid_price","bid_amount"]
[1767661348504,9.32140191,3218.4,3216.8,0.92176478]
[1767661348505,1.75381134,3218.3,3216.8,0.92176478]
[1767661348708,1.84052281,3218.3,3216.8,0.92176478]
[1767661348866,1.75381134,3218.3,3216.8,0.92176478]
[1767661349063,0.94081134,3218.3,3216.8,0.92176478]
[1767661349502,0.813,3218.2,3216.9,0.92176478]
[1767661349718,0.813,3218.2,3217.0,0.92176478]
[1767661350072,0.813,3218.1,3217.0,0.92176478]
[1767661350308,6.21504038,3218.0,3217.0,0.92176478]
[1767661351265,3.10752019,3218.0,3217.0,0.92176478]
[1767661351503,0.813,3218.1,3217.0,0.92176478]
[1767661351705,0.813,3218.1,3217.2,0.96971354]
[1767661352827,3.10674785,3218.8,3217.2,0.96971354]
[1767661353039,0.813,3218.7,3217.3,0.96971354]
[1767661353309,0.813,3218.6,3217.3,0.96971354]
[1767661353510,3.10674785,3218.8,3217.3,0.96971354]
[1767661353716,0.813,3218.6,3217.5,0.96971354]
[1767661354521,3.10703743,3218.5,3217.5,0.96971354]
[1767661354987,6.21407486,3218.5,3217.5,0.96971354]
[1767661355188,3.10703743,3218.5,3217.5,0.96971354]
[1767661355401,6.21407486,3218.5,3217.5,0.96971354]
[1767661355598,0.70270749,3218.4,3217.5,0.96971354]
[1767661356183,0.70270749,3218.4,3217.6,0.001]
[1767661356581,6.21446104,3218.3,3217.6,0.001]
[1767661356803,6.21446104,3218.3,3216.5,3.10896839]
[1767661357015,6.21446104,3218.3,3217.0,0.96971354]
[1767661357016,0.814,3218.2,3217.0,0.96971354]
[1767661357825,0.814,3218.2,3216.5,0.96971354]
[1767661358026,0.814,3218.2,3216.6,0.96971354]
[1767661358027,1.56467037,3218.2,3216.6,0.96971354]
[1767661358229,1.59191314,3218.1,3216.7,0.96971354]
[1767661358524,1.59191314,3218.1,3217.0,0.96971354]
[1767661358731,4.69935337,3218.1,3217.0,0.96971354]
[1767661360005,7.8067936,3218.1,3217.0,0.96971354]
[1767661362110,7.8067936,3218.1,3217.0,0.93946071]
[1767661362316,0.78067936,3218.0,3217.0,0.93946071]
[1767661362730,3.92168332,3217.9,3217.0,0.93946071]
[1767661363087,7.02936664,3217.9,3216.5,0.96971354]
[1767661363290,0.7809232,3217.8,3216.4,0.001]
[1767661364598,0.7809232,3217.8,3216.4,3.11005679]
[1767661364790,3.10790651,3217.6,3216.4,0.70433111]
[1767661365019,3.10790651,3217.6,3216.4,0.001]
[1767661365020,6.21381303,3217.6,3216.4,0.001]
[1767661365196,10.10264274,3217.6,3216.4,0.001]
[1767661365396,6.99473623,3217.6,3216.4,0.001]
[1767661365894,3.88682972,3217.6,3216.4,0.001]
[1767661366096,3.88682972,3217.6,3216.4,3.11005017]
[1767661366405,0.814,3217.5,3216.5,0.31100502]
[1767661366609,0.814,3217.5,3216.4,0.001]
[1767661366818,3.1080997,3217.4,3216.4,0.001]
[1767661367608,6.2161994,3217.4,3216.4,0.001]
[1767661367808,3.1080997,3217.4,3216.4,0.001]
[1767661368004,6.2161994,3217.4,3216.4,0.001]
[1767661368319,7.79985724,3217.4,3216.4,0.001]
[1767661368519,7.79985724,3217.4,3216.4,0.97071354]
[1767661369305,7.79985724,3217.4,3216.4,0.001]
[1767661369531,0.7809232,3217.3,3216.7,0.001]
[1767661370242,0.7809232,3217.3,3216.4,0.001]
[1767661370395,1.16888801,3217.2,3216.4,0.001]
[1767661371130,6.21677908,3217.1,3216.4,0.001]
[1767661372102,6.99770228,3217.1,3215.7,0.814]
[1767661372304,0.7809232,3217.0,3215.7,0.96971354]
[1767661372800,3.10838954,3217.1,3215.9,0.96971354]
[1767661372801,0.814,3216.9,3215.9,0.96971354]
[1767661373006,1.20623895,3216.9,3215.9,0.96971354]
[1767661373234,3.50088723,3216.9,3215.9,0.96971354]
[1767661373537,0.814,3216.8,3215.9,0.96971354]
[1767661374951,0.814,3216.8,3215.6,2.579789]
[1767661375306,3.92272367,3216.8,3215.6,5.68962693]
[1767661375543,0.814,3216.8,3215.7,1.70121082]
[1767661375842,3.92270392,3216.8,3215.8,0.96562147]
[1767661376331,7.03140784,3216.8,3215.7,0.73558935]
[1767661376538,7.03140784,3216.8,3215.5,1.66626652]
[1767661376735,1.5949232,3216.8,3215.5,1.66626652]
[1767661377037,0.814,3216.8,3215.6,7.1852989]
[1767661377333,0.814,3216.8,3215.7,0.96562147]
[1767661377529,0.814,3216.8,3215.7,4.07529471]
[1767661377719,0.814,3216.8,3215.8,0.71851326]
[1767661378437,0.814,3216.8,3215.7,4.07535399]
[1767661379440,3.50088332,3216.9,3215.7,4.07535399]
[1767661379639,3.50088332,3216.9,3215.7,0.96562147]
[1767661379640,3.92268486,3216.8,3215.7,0.96562147]
[1767661380336,0.814,3216.8,3215.8,0.96562147]
[1767661380526,3.92271876,3216.8,3215.8,0.96562147]
[1767661380728,0.814,3216.8,3215.8,0.96562147]
[1767661380940,0.814,3216.8,3215.9,1.37315435]
[1767661381117,3.92069756,3216.8,3215.9,1.37315435]
[1767661381322,7.02939511,3216.8,3215.9,0.96562147]
[1767661381642,0.81200001,3216.8,3215.9,0.96562147]
[1767661381935,7.02936859,3216.8,3215.5,1.63488976]
[1767661382110,10.13805288,3216.8,3215.5,1.63488976]
[1767661382311,1.44198441,3216.7,3215.5,1.63488976]
[1767661382613,1.44198441,3216.7,3215.5,0.93424471]
[1767661382813,0.97905103,3216.6,3214.8,0.93424471]
[1767661383035,0.97905103,3216.6,3214.9,0.93424471]
[1767661383909,0.97905103,3216.4,3214.9,0.93424471]
[1767661384115,0.97905103,3216.2,3214.9,0.93424471]
[1767661384464,1.0657625,3216.2,3214.3,0.93424471]
[1767661385045,0.97905103,3215.9,3214.3,0.93424471]
[1767661385218,0.08671147,3216.0,3214.3,0.93424471]
[1767661385219,1.79305103,3215.8,3214.3,0.93424471]
[1767661385739,0.97905103,3215.7,3214.3,0.93424471]
[1767661385918,6.21987248,3215.5,3214.3,0.93424471]
[1767661386325,7.19892351,3215.5,3213.9,0.93424471]
[1767661387726,10.30885975,3215.5,3213.9,0.93424471]
[1767661388051,7.19892351,3215.5,3214.0,0.93424471]
[1767661389142,7.19892351,3215.5,3213.6,0.93624471]
[1767661389143,0.97905103,3215.4,3213.6,0.93624471]
[1767661389314,0.97905103,3215.2,3213.6,0.93624471]
[1767661389752,0.814,3215.1,3213.6,0.93624471]
[1767661390046,6.2208398,3215.0,3213.6,0.93624471]
[1767661390413,7.19989083,3215.0,3213.6,0.93624471]
[1767661391119,3.1104199,3215.0,3213.6,0.93624471]
[1767661391315,3.42146189,3215.0,3213.8,0.93424471]
[1767661391626,0.814,3214.9,3213.8,0.93424471]
[1767661391822,3.11022642,3215.2,3213.8,0.93424471]
[1767661392043,0.814,3214.9,3213.8,0.93424471]
[1767661392247,0.1793051,3215.6,3213.9,0.93424471]
[1767661392416,0.1793051,3215.6,3214.1,0.93424471]
[1767661392726,0.814,3215.8,3214.5,0.93424471]
[1767661392922,3.10923301,3216.3,3214.5,0.93424471]
[1767661393138,0.814,3216.2,3214.5,0.93424471]
[1767661393347,0.814,3216.2,3214.7,0.93424471]
[1767661393560,1.5172466,3216.2,3214.7,0.92206925]
[1767661393733,0.97905103,3216.1,3214.7,0.92206925]
[1767661394416,3.10945273,3216.0,3214.7,0.92206925]
[1767661394612,0.814,3215.9,3214.8,0.93424471]
[1767661395752,3.10945273,3216.0,3214.8,0.93424471]
[1767661396050,0.814,3215.8,3214.8,0.93424471]
[1767661396518,3.92370611,3215.8,3214.8,0.93424471]
[1767661396846,7.03341222,3215.8,3214.8,0.93424471]
[1767661397221,7.03341222,3215.8,3214.4,0.93424471]
[1767661397422,0.69220739,3216.0,3214.7,0.93424471]
[1767661397722,0.814,3215.9,3214.9,0.93424471]
[1767661398852,3.9235794,3215.9,3214.9,0.93424471]
[1767661399223,0.814,3215.9,3214.9,0.93424471]
[1767661400373,0.002,3217.1,3215.1,7.488751]
[1767661400658,0.814,3217.0,3215.4,0.93424471]
[1767661400836,3.10858279,3216.9,3215.7,0.93424471]
[1767661401151,3.10858279,3216.9,3215.8,1.33864979]
[1767661401365,6.21716558,3216.9,3215.8,1.33864979]
[1767661401655,7.19621661,3216.9,3215.4,0.93424471]
[1767661402253,7.19621661,3216.9,3215.5,0.93424471]
[1767661403530,0.002,3217.1,3215.6,0.93424471]
[1767661403759,0.816,3217.1,3215.6,0.93424471]
[1767661403959,0.80264185,3217.1,3216.1,0.93424471]
[1767661404758,0.97905103,3217.7,3216.1,0.93424471]
[1767661404955,3.10833946,3217.2,3216.1,0.93424471]
[1767661405379,3.92233946,3217.2,3216.1,0.93424471]
[1767661405866,7.03067892,3217.2,3216.1,0.93424471]
[1767661406247,3.92233946,3217.2,3216.1,0.93424471]
[1767661406755,7.03067892,3217.2,3216.1,0.93424471]
[1767661406954,0.97905103,3217.4,3216.1,0.93424471]
[1767661406955,0.70306789,3217.1,3216.1,0.93424471]
[1767661407152,3.10767457,3217.9,3216.1,0.93424471]
[1767661407153,6.21561984,3217.7,3216.2,0.93424471]
[1767661407333,6.21561984,3217.7,3215.6,0.814]
[1767661407334,0.97905103,3217.5,3215.8,0.93424471]
[1767661407842,0.97905103,3217.5,3215.9,3.10948877]
[1767661408453,0.97905103,3217.5,3215.8,4.04387891]
[1767661408668,0.97905103,3217.5,3215.9,3.10948286]
[1767661408942,0.814,3217.6,3216.1,0.93424471]
[1767661408943,3.10829292,3217.2,3216.1,0.93424471]
[1767661409973,0.002,3216.9,3216.1,0.93424471]
[1767661410846,0.002,3216.9,3215.7,3.10974282]
[1767661411469,0.002,3216.9,3215.8,0.98811079]
[1767661411870,0.96547692,3216.8,3215.4,0.98811079]
[1767661412070,1.14362461,3216.7,3215.4,0.98811079]
[1767661412678,1.14362461,3216.7,3215.5,3.10992544]
[1767661412877,1.14362461,3216.7,3215.5,4.09803623]
[1767661413044,0.17814769,3216.7,3215.6,0.98811079]
[1767661413378,0.814,3216.6,3215.1,0.814]
[1767661413548,0.814,3216.6,3215.3,0.98811079]
[1767661413743,0.814,3216.6,3215.4,0.98811079]
[1767661414074,0.814,3216.6,3215.6,0.98811079]
[1767661414448,4.07419608,3216.8,3215.6,0.98811079]
[1767661414646,0.814,3216.6,3215.6,0.98811079]
[1767661415056,3.10896937,3216.5,3215.2,0.98811079]
[1767661415253,6.21793874,3216.5,3215.2,0.98811079]
[1767661415453,3.10896937,3216.5,3215.3,0.98811079]
[1767661415689,3.66966202,3216.5,3215.5,0.98811079]
[1767661416677,0.96547692,3216.4,3215.0,0.98811079]
[1767661416871,0.96547692,3216.4,3215.0,4.09851114]
[1767661417378,3.1091627,3216.3,3215.1,0.98811079]
[1767661418350,0.56069265,3216.5,3215.1,0.98811079]
[1767661418570,0.814,3216.4,3215.3,0.98811079]
[1767661419269,0.814,3216.4,3215.3,3.11011713]
[1767661419447,0.814,3216.4,3215.2,0.7208931]
[1767661419448,0.814,3216.4,3215.4,0.98811079]
[1767661419654,3.92309822,3216.4,3215.4,0.98811079]
[1767661419853,3.92307072,3216.4,3215.4,0.98811079]
[1767661420050,0.96747692,3216.9,3215.5,0.98811079]
[1767661420369,0.764,3216.7,3215.6,0.98811079]
[1767661421362,3.87285474,3216.7,3215.7,0.03109741]
[1767661421869,6.98170948,3216.7,3215.6,0.98811079]
[1767661422053,0.96547692,3216.6,3215.4,0.40982812]
[1767661422252,1.66364787,3216.6,3215.3,0.98811079]
[1767661422653,1.66364787,3216.6,3215.3,0.98911079]
[1767661423382,6.21793874,3216.5,3215.3,0.98911079]
[1767661423592,0.78815866,3216.4,3215.3,0.98911079]
[1767661424687,0.78815866,3216.4,3215.3,0.98330396]
[1767661425188,0.96547692,3216.3,3215.3,0.001]
[1767661425487,3.92327875,3216.2,3215.3,0.001]
[1767661425667,0.814,3216.2,3215.3,0.98911079]
[1767661426181,0.814,3216.2,3215.4,0.98811079]
[1767661427182,0.81200001,3216.2,3215.4,0.98811079]
[1767661428260,0.96747692,3216.9,3215.5,0.98811079]
[1767661428461,0.96747692,3216.9,3215.4,7.03402446]
[1767661428462,0.96747692,3216.9,3215.6,1.79032432]
[1767661428683,0.96747692,3216.9,3215.7,0.98811079]
[1767661431092,0.96747692,3216.9,3215.8,3.10964612]
[1767661431893,0.96547692,3216.8,3215.7,4.09781828]
[1767661432067,0.96547692,3216.8,3215.6,0.80221353]
[1767661432266,0.96547692,3216.8,3215.3,0.98911079]
[1767661432267,0.96547692,3216.8,3215.7,3.10970318]
[1767661433360,3.11059977,3216.9,3215.6,3.10983953]
[1767661433361,0.96547692,3216.7,3215.6,3.10983953]
[1767661433560,3.11064137,3216.9,3215.7,0.98811079]
[1767661435760,0.002,3216.9,3215.9,0.96079554]
[1767661440498,0.002,3217.2,3216.6,0.96079554]
[1767661440866,0.002,3217.2,3216.7,1.14694624]
[1767661442359,0.002,3217.2,3216.7,0.96079554]
[1767661442788,0.002,3217.2,3216.4,0.95511446]
[1767661443184,0.002,3217.2,3216.5,0.95511446]
[1767661446462,0.9458738,3218.0,3216.9,0.95511446]
[1767661446865,4.05341008,3218.0,3216.9,0.95511446]
[1767661447066,0.40534101,3217.9,3216.9,0.95511446]
[1767661447781,0.9438738,3217.8,3216.4,0.95511446]
[1767661447983,0.9438738,3217.8,3216.5,0.814]
[1767661448186,0.9438738,3217.8,3216.5,3.92296492]
[1767661448370,0.9438738,3217.8,3216.6,3.10887121]
[1767661448575,0.40534101,3217.9,3216.8,0.95511446]
[1767661448803,4.05150243,3217.9,3216.8,0.95511446]
[1767661449002,0.9438738,3217.9,3216.8,0.95511446]
[1767661450417,0.002,3218.0,3216.9,0.95511446]
[1767661451283,0.9438738,3217.9,3216.8,7.17239893]
[1767661451803,0.002,3218.0,3216.9,0.95511446]
[1767661452105,0.002,3218.0,3217.0,1.53123989]
[1767661452501,0.002,3218.0,3217.1,0.95511446]
[1767661454478,0.002,3218.0,3217.3,0.95511446]
[1767661455682,0.9458738,3218.0,3217.0,0.71723989]
[1767661455881,0.9458738,3218.0,3216.9,3.91970961]
[1767661456079,0.9458738,3218.0,3216.7,1.34740158]
[1767661456300,0.9458738,3218.0,3216.3,0.95511446]
[1767661456615,0.9438738,3217.8,3216.4,3.92304962]
[1767661457188,0.9438738,3217.8,3216.4,0.814]
[1767661457915,0.9438738,3217.8,3216.2,0.95511446]
[1767661458257,9.32285028,3217.9,3216.2,1.44306415]
[1767661458258,0.9438738,3217.6,3216.2,1.44306415]
[1767661458395,0.814,3217.6,3216.2,1.44306415]
[1767661458716,0.9438738,3217.3,3217.2,0.001]
[1767661458920,0.9438738,3217.3,3216.0,0.001]
[1767661459084,0.9438738,3217.3,3216.0,0.95611446]
[1767661460514,0.9438738,3217.0,3215.5,0.95511446]
[1767661460713,6.21677908,3217.1,3215.5,0.95511446]
[1767661460714,0.9438738,3216.8,3215.5,0.95511446]
[1767661461601,0.9438738,3216.8,3215.2,0.95511446]
[1767661462520,0.9438738,3216.6,3215.2,0.95511446]
[1767661462726,0.9438738,3216.4,3215.2,0.95511446]
[1767661463033,0.814,3216.3,3215.2,0.95511446]
[1767661464918,6.21851874,3216.2,3215.2,0.95511446]
[1767661465440,3.10925937,3216.2,3215.2,0.95511446]
[1767661465805,6.21851874,3216.2,3215.2,0.95511446]
[1767661466010,0.70325187,3216.1,3215.2,0.95511446]
[1767661466211,0.9438738,3216.8,3215.3,0.95611446]
[1767661466419,0.814,3216.7,3215.3,0.95611446]
[1767661466622,0.9438738,3216.7,3215.3,0.95611446]
[1767661466852,3.10896937,3216.5,3215.3,0.95611446]
[1767661467153,3.90653949,3216.5,3215.5,0.95511446]
[1767661467933,0.79757012,3216.5,3215.5,0.95511446]
[1767661468133,3.92290266,3216.6,3215.5,0.95511446]
[1767661468610,7.3538738,3217.0,3215.5,0.95511446]
[1767661468816,0.814,3216.7,3215.5,0.95511446]
[1767661469026,3.10887272,3216.6,3215.5,0.95511446]
[1767661469426,6.21774544,3216.6,3215.5,0.95511446]
[1767661469608,6.92091998,3216.6,3215.5,0.95511446]
[1767661470640,3.81204726,3216.6,3215.5,0.95511446]
[1767661471034,6.92091998,3216.6,3215.5,0.95511446]
[1767661471236,0.99133478,3216.5,3215.3,0.001]
[1767661471420,0.99133478,3216.3,3215.6,0.001]
[1767661472836,0.814,3216.2,3215.6,0.001]
[1767661473339,3.10935605,3216.1,3215.6,0.001]
[1767661473529,6.2187121,3216.1,3215.6,0.001]
[1767661474739,3.10935605,3216.1,3215.6,0.001]
[1767661475441,3.91174255,3216.1,3215.6,0.001]
[1767661476437,0.8023865,3216.1,3215.6,0.001]
[1767661476910,3.91174939,3216.1,3215.6,0.001]
[1767661479343,8.01244706,3216.1,3215.6,0.001]
[1767661480245,0.99133478,3216.0,3215.6,0.001]
[1767661480451,0.99133478,3215.9,3215.6,0.001]
[1767661481809,0.99133478,3216.1,3215.6,0.001]
[1767661482014,0.99133478,3216.4,3215.6,0.001]
[1767661483143,0.002,3216.5,3215.8,0.97911436]
[1767661483329,0.002,3216.8,3215.7,1.01021177]
[1767661484248,0.002,3216.8,3215.7,0.97911436]
[1767661484834,0.002,3216.8,3215.8,0.97911436]
[1767661485334,0.002,3216.8,3216.0,0.97911436]
[1767661487638,0.002,3216.8,3216.0,0.97782399]
[1767661488781,0.99133478,3216.7,3215.9,0.001]
[1767661489442,0.816,3216.8,3215.9,0.98011436]
[1767661489443,0.002,3216.8,3215.9,0.98011436]
[1767661489651,0.002,3216.8,3216.1,0.97911436]
[1767661489860,0.002,3216.8,3216.3,0.97911436]
[1767661494045,0.002,3216.8,3216.3,0.96377362]
[1767661495055,0.002,3216.8,3215.9,0.001]
[1767661495234,1.76912536,3216.8,3215.9,0.001]
[1767661496833,3.10877607,3216.7,3215.9,0.001]
[1767661497059,0.002,3216.5,3215.9,0.001]
[1767661497367,0.002,3216.8,3216.4,0.96783905]
[1767661497572,3.10794633,3217.6,3216.6,0.96783905]
[1767661499070,3.10980992,3217.7,3216.6,0.96783905]
[1767661499762,0.95312536,3217.6,3215.9,0.001]
[1767661499937,0.95312536,3217.6,3216.3,0.96783905]
[1767661500339,0.95312536,3217.6,3216.4,0.96783905]
[1767661500557,1.35807452,3217.6,3216.6,0.96783905]
[1767661500734,0.002,3217.7,3216.7,0.96783905]
[1767661501265,0.002,3217.7,3216.9,0.98175138]
[1767661502437,0.97779289,3217.7,3216.5,0.40769955]
[1767661502665,0.97779289,3217.7,3216.4,0.98175138]
[1767661502964,0.97779289,3217.7,3216.5,4.27021818]
[1767661503385,4.08567609,3217.7,3216.5,4.27021818]
[1767661503590,0.97579289,3217.6,3216.5,1.16132652]
[1767661504194,0.97579289,3217.5,3215.9,0.001]
[1767661504389,0.97579289,3217.5,3216.1,3.92335504]
[1767661505063,0.97579289,3217.5,3216.1,0.814]
[1767661505259,0.814,3217.6,3216.1,0.814]
[1767661505260,0.97579289,3217.3,3216.1,0.814]
[1767661505461,0.97579289,3217.3,3215.9,0.001]
[1767661505690,0.97579289,3217.1,3215.9,0.001]
[1767661507402,0.97579289,3216.9,3215.9,0.001]
[1767661507994,3.10848616,3217.0,3215.9,0.98275138]
[1767661508567,6.21697232,3217.0,3215.9,0.98275138]
[1767661508901,3.10848616,3217.0,3215.9,0.98275138]
[1767661509069,3.88349494,3217.0,3216.0,0.98175138]
[1767661509865,0.002,3216.8,3216.0,0.98175138]
[1767661511487,0.002,3216.8,3215.9,0.001]
[1767661513021,0.97779289,3216.8,3215.9,0.001]
[1767661513682,1.78979289,3216.7,3215.9,0.001]
[1767661513883,1.15497218,3216.6,3215.9,0.001]
[1767661517317,3.10896937,3216.5,3215.9,0.001]
[1767661518241,6.21793874,3216.5,3215.9,0.001]
[1767661518898,3.10896937,3216.5,3215.9,0.001]
[1767661519426,1.15497218,3216.6,3215.9,0.001]
[1767661519632,4.26385843,3216.6,3215.9,0.001]
[1767661519942,0.50778584,3216.5,3215.9,0.001]
[1767661521147,0.97579289,3216.4,3215.9,0.001]
[1767661521631,6.2183254,3216.3,3215.9,0.001]
[1767661523131,7.19411829,3216.3,3215.6,0.001]
[1767661524029,4.08495559,3216.3,3215.6,0.001]
[1767661524332,1.38428845,3216.2,3215.6,0.001]
[1767661525529,0.97579289,3216.1,3215.6,0.001]
[1767661526041,6.21890546,3216.0,3215.6,0.001]
[1767661526866,7.19469835,3216.0,3215.6,0.001]
[1767661527150,0.97579289,3215.9,3215.6,0.001]
[1767661527322,0.97579289,3215.7,3215.3,0.001]
[1767661528529,3.82914773,3215.8,3215.3,0.001]
[1767661528736,3.10977658,3215.7,3215.3,0.001]
[1767661528960,6.21955316,3215.7,3215.3,0.001]
[1767661529122,3.10977658,3215.7,3215.3,0.001]
[1767661529324,0.69389207,3215.6,3215.3,0.001]
[1767661529521,3.10977658,3215.7,3215.3,0.001]
[1767661529948,4.08534231,3215.9,3215.3,0.001]
[1767661530167,4.08534231,3215.9,3215.0,1.03872867]
[1767661530168,0.97579289,3215.8,3215.0,1.03872867]
[1767661532056,7.14107201,3215.7,3215.0,1.03872867]
[1767661532931,0.92158637,3215.6,3215.0,1.03872867]
[1767661533134,0.7955072,3215.5,3214.2,0.002]
[1767661533462,0.7955072,3215.5,3213.9,0.002]
[1767661533463,1.00829784,3215.4,3213.9,0.002]
[1767661533765,0.92158637,3215.1,3213.9,0.002]
[1767661533966,0.92158637,3214.9,3213.9,0.002]
[1767661534165,0.90071147,3215.0,3213.9,0.002]
[1767661534166,0.92158637,3214.7,3213.9,0.002]
[1767661535859,0.92158637,3214.7,3214.2,0.001]
[1767661536165,0.92158637,3214.7,3213.9,0.002]
[1767661536166,6.22161388,3214.6,3213.9,0.002]
[1767661536337,0.814,3214.5,3213.9,0.002]
[1767661537075,0.92158637,3214.4,3213.9,0.002]
[1767661537567,1.71730639,3214.4,3213.9,0.002]
[1767661538265,3.11109728,3214.3,3213.9,0.002]
[1767661538565,6.22219456,3214.3,3213.9,0.002]
[1767661538757,6.22219456,3214.3,3213.6,0.002]
[1767661539267,0.92158637,3214.7,3213.6,1.0017076]
[1767661539472,0.815,3214.6,3213.6,1.0017076]
[1767661540240,6.22180742,3214.5,3213.6,1.0017076]
[1767661542907,7.32872782,3214.5,3213.6,1.0017076]
[1767661543095,7.32872782,3214.5,3213.6,0.002]
[1767661543096,0.92158637,3214.4,3213.6,0.002]
[1767661544521,3.11109728,3214.3,3213.6,1.0017076]
[1767661545621,6.22219456,3214.3,3213.6,1.0017076]
[1767661546526,7.14358735,3214.4,3213.6,1.0017076]
[1767661546898,4.03258686,3214.4,3213.6,1.0017076]
[1767661547101,3.11100049,3214.4,3213.6,1.0017076]
[1767661547519,6.22200098,3214.4,3213.6,1.0017076]
[1767661548232,7.03639312,3214.4,3213.9,0.002]
[1767661548450,3.11080694,3214.6,3213.9,1.0017076]
[1767661548628,0.815,3214.5,3213.9,1.0017076]
[1767661548796,1.63569129,3217.1,3213.9,1.0017076]
[1767661548797,3.2466531,3214.9,3213.9,1.0017076]
[1767661549527,0.13612585,3214.9,3213.9,1.0017076]
[1767661549731,0.13612585,3214.9,3214.1,0.9997076]
[1767661549904,3.24664524,3214.9,3214.1,0.9997076]
[1767661550425,0.13612585,3214.9,3214.1,0.9997076]
[1767661551000,3.24664621,3214.9,3214.1,0.9997076]
[1767661551202,0.13612585,3214.9,3214.1,0.9997076]
[1767661551799,3.24669567,3214.9,3214.1,0.9997076]
[1767661552019,0.13612585,3214.9,3214.1,0.9997076]
[1767661552429,3.24664796,3214.9,3214.1,0.9997076]
[1767661552826,0.13612585,3214.9,3214.1,0.9997076]
[1767661553413,0.13612585,3214.9,3213.9,1.0017076]
[1767661553414,7.17216441,3214.9,3213.9,1.0017076]
[1767661554432,8.09030956,3214.9,3213.9,1.0017076]
[1767661554604,0.91814515,3214.8,3213.9,1.0017076]
[1767661555112,3.24664723,3214.9,3214.0,0.93700659]
[1767661555314,0.13612585,3214.9,3214.0,0.93700659]
[1767661555816,0.13612585,3214.9,3213.9,3.11345066]
[1767661555817,0.13612585,3214.9,3214.2,0.93700659]
[1767661556019,3.2466769,3214.9,3214.2,0.93700659]
[1767661556419,0.13612585,3214.9,3214.2,0.93700659]
[1767661557536,3.2466541,3214.9,3214.2,0.93700659]
[1767661559547,0.91814515,3214.8,3213.9,0.93900659]
[1767661559759,1.41612507,3214.8,3213.9,0.93900659]
[1767661559964,3.2466541,3214.9,3213.9,0.93900659]
[1767661560620,0.002,3214.6,3213.9,0.93900659]
[1767661562383,0.002,3214.6,3214.0,0.98043958]
[1767661562875,0.13812585,3214.9,3214.0,0.98043958]
[1767661563231,1.09326981,3214.9,3214.1,3.11129087]
[1767661563553,1.09326981,3214.9,3214.2,0.40917305]
[1767661564651,0.13812585,3214.9,3214.3,0.98043958]
[1767661565860,3.24866749,3214.9,3214.0,0.98043958]
[1767661566061,4.20381145,3214.9,3214.0,0.98043958]
[1767661566936,7.31435309,3214.9,3214.0,0.98043958]
[1767661567138,0.95514396,3214.8,3214.0,0.98043958]
[1767661567649,3.11071017,3214.7,3214.0,0.98043958]
[1767661568039,0.95514396,3214.6,3213.9,0.002]
[1767661568835,0.95514396,3214.6,3213.7,0.96243958]
[1767661569235,0.95514396,3214.6,3213.7,1.45176826]
[1767661569762,0.95514396,3214.6,3213.8,0.98043958]
[1767661570142,0.95514396,3214.6,3213.7,0.48932868]
[1767661571164,0.95514396,3214.5,3213.7,0.48932868]
[1767661571660,0.95514396,3214.3,3213.6,0.002]
[1767661573461,0.95514396,3214.3,3214.0,0.002]
[1767661573758,0.95514396,3214.6,3214.0,0.002]
[1767661573957,0.815,3214.7,3214.1,0.98043958]
[1767661574762,3.92574872,3214.7,3214.0,0.002]
[1767661574970,4.88089268,3214.7,3214.0,0.002]
[1767661575466,0.002,3214.9,3214.0,0.98243958]
[1767661576666,0.002,3214.9,3214.1,1.01155011]
[1767661577170,0.002,3214.9,3214.1,0.98043958]
[1767661579570,0.95514396,3215.9,3214.7,0.98043958]
[1767661579772,0.815,3215.8,3214.7,0.98043958]
[1767661579974,0.815,3215.7,3214.7,0.98043958]
[1767661581043,0.815,3215.8,3214.7,0.98043958]
[1767661581245,3.10974282,3215.7,3214.7,0.98043958]
[1767661581444,0.70344128,3215.6,3214.7,0.98043958]
[1767661582676,0.95514396,3215.5,3214.3,4.09153377]
[1767661582863,0.95514396,3215.5,3214.5,0.98043958]
[1767661583182,3.81333989,3215.6,3214.5,0.98043958]
[1767661583469,3.81333989,3215.6,3214.7,0.98043958]
[1767661584877,0.70344128,3215.6,3214.7,0.98043958]
[1767661585170,4.8798156,3215.8,3214.7,0.98043958]
[1767661585171,4.06482802,3215.8,3214.7,0.98043958]
[1767661585372,0.815,3215.7,3214.7,0.98043958]
[1767661585576,1.77014396,3215.7,3214.7,0.98043958]
[1767661586080,0.002,3215.3,3214.7,0.98043958]
[1767661586957,0.002,3215.3,3214.3,0.98043958]
[1767661587481,0.002,3215.3,3214.5,0.98043958]
[1767661589460,0.002,3215.3,3214.6,3.11080694]
[1767661589759,0.002,3215.6,3214.7,0.98043958]
[1767661591675,0.002,3215.6,3214.9,0.98530104]
[1767661592052,0.002,3215.6,3215.1,0.98530104]
[1767661594376,0.002,3215.6,3214.6,3.92580064]
[1767661594559,0.002,3215.6,3214.8,0.98530104]
[1767661595089,0.002,3215.6,3214.9,0.98530104]
[1767661595782,0.002,3215.6,3214.8,8.90756413]
[1767661595783,0.91874872,3214.9,3213.5,0.98730104]
[1767661595949,0.91874872,3214.9,3213.5,0.002]
[1767661595950,0.89955207,3214.6,3213.5,0.002]
[1767661596370,0.91874872,3214.8,3213.7,0.98530104]
[1767661597959,3.11071017,3214.7,3213.7,0.98530104]
[1767661598164,4.02943928,3214.8,3213.7,0.98530104]
[1767661599095,4.02943928,3214.8,3214.3,0.002]
[1767661600089,7.93563029,3214.8,3214.3,0.002]
[1767661600389,4.82493973,3214.8,3214.3,0.002]
[1767661600586,1.71424917,3214.8,3214.3,0.002]
[1767661600894,3.11055256,3214.9,3214.3,0.002]
[1767661600895,0.91874872,3214.9,3214.3,0.002]
[1767661601566,7.95469756,3215.0,3214.3,0.002]
[1767661604297,0.91874872,3214.9,3214.3,0.002]
[1767661604795,6.22122682,3214.8,3214.3,0.002]
[1767661605094,0.71399755,3214.7,3214.3,0.002]
[1767661606291,6.22122682,3214.8,3214.3,0.002]
[1767661606594,0.91874872,3214.7,3214.3,0.002]
[1767661606789,3.11080694,3214.6,3214.3,0.002]
[1767661606994,4.02947081,3214.7,3214.3,0.002]
[1767661607403,1.73374872,3215.0,3214.3,0.002]
[1767661607578,0.815,3214.9,3214.3,0.002]
[1767661607897,3.11043808,3215.0,3214.3,0.002]
[1767661608773,6.22087616,3215.0,3214.3,0.002]
[1767661609522,0.91874872,3214.9,3214.3,0.002]